Cogmind - Beta 16.1 @@@ ROGUE MODE // 2026.04.17 @ 17:48:59 // Winter2019/RPGLIKE Player: AngelSpirit Result: Destroyed by O8-SJ7(j) with Overtuned Pulse Rifle Performance ------------- Evolutions (0) 0 Regions Visited (4) 800 Robots Destroyed (66) 330 Value Destroyed (1860) 1860 Prototype IDs (21) 420 Alien Tech Used (0) 0 Bonus (899) 899 TOTAL SCORE: 4309 Bonus ------- Follower Combat Kills 99 Registered with UFD 300 Met Optimus in HQ 500 Cogmind --------- Core Integrity 0/750 Matter 300/300 Energy 71/160 System Corruption 3% Temperature Cool (15) Movement Flying (40) Location -9/Scraptown Parts ------- > --- POWER (1) -------- Light Nuclear Core > --- PROPULSION (4) --- Flightbrick > --- UTILITY (2+3) ---- Deep Structural Scanner Hacking Suite Makeshift Hacking Suite (+) > --- WEAPON (2) ------- Junk Cannon > --- INVENTORY (5) ---- A0-MCA's Component Scanner Tech Extrapolator Master Drone Bay (1/1) Multitool DRS Beacon (Ready) Peak State ------------ > --- POWER ------------ Light Nuclear Core > --- PROPULSION ------- Flightbrick > --- UTILITY ---------- Deep Structural Scanner Hacking Suite Makeshift Hacking Suite > --- WEAPON ----------- Junk Cannon > --- INVENTORY -------- A0-MCA's Component Scanner Tech Extrapolator Master Drone Bay Multitool DRS Beacon [Rating: 65] Favorites ----------- Power Light Ion Engine Engine Light Ion Engine Power Core Light Nuclear Core Propulsion Compact Wheel Wheel Compact Wheel Hover Unit Gravmag System Flight Unit Flightbrick Utility Seismic Detector Device Seismic Detector Hackware Hacking Suite Protection Backup Plating I Weapon Subdweller Beam Cannon Energy Cannon Subdweller Beam Cannon Ballistic Gun Autogun Ballistic Cannon Slug Cannon Launcher Grenade Launcher Special Weapon Junk Cannon Build | -11 -10 -10 -9 -9 ------- Run | Yrd Mat Sub Rec Scr Slots Evolved 5 | 2 . . 3 . Power . | . . . . . Propulsion 3 | . . . 3 . Utility 1 | 1 . . . . Weapon 1 | 1 . . . . Parts Attached 30 | 6 4 10 4 6 Power 3 | 2 . . . 1 Engine 2 | 2 . . . . Core 1 | . . . . 1 Reactor . | . . . . . Propulsion 6 | 1 1 . 3 1 Treads . | . . . . . Leg . | . . . . . Wheel 3 | 1 1 . 1 . Hover 2 | . . . 2 . Flight 1 | . . . . 1 Utility 5 | 1 . 2 . 2 Device 2 | 1 . . . 1 Storage . | . . . . . Processor . | . . . . . Hackware 2 | . . 1 . 1 Protection 1 | . . 1 . . Artifact . | . . . . . Weapon 16 | 2 3 8 1 2 Energy Gun . | . . . . . Energy Cannon 4 | . . 4 . . Ballistic Gun 6 | 2 2 1 1 . Ballistic Cannon 2 | . . 2 . . Launcher 2 | . 1 1 . . Special Weapon 2 | . . . . 2 Impact Weapon . | . . . . . Slashing Weapon . | . . . . . Piercing Weapon . | . . . . . Special Melee Weapon . | . . . . . Unidentified Prototypes 1 | . . . . 1 Parts Lost 1 | . . 1 . . Power . | . . . . . Propulsion . | . . . . . Utility 1 | . . 1 . . Weapon . | . . . . . Highest Loss Streak 1 | . . 1 . . To Critical Strikes . | . . . . . Average Backups 2 | . 2 2 1 1 Power . | . . . . . Propulsion . | . 1 . 1 . Utility . | . . . . . Weapon 1 | . 1 1 . . Tool/Special . | . . . . . Unused Backups 13 | . 2 5 2 4 Power . | . . . . . Propulsion . | . . . . . Utility 6 | . . . 2 4 Weapon 7 | . 2 5 . . Tool/Special . | . . . . . Average Slot Usage (%) 89 | . 94 99 92 69 Engine 11 | . 16 16 11 . Core 2 | . . . . 8 Wheel 15 | . 16 16 21 10 Hover 5 | . . . 13 10 Flight 1 | . . . . 4 Device 13 | . 16 16 11 9 Hackware 6 | . . 5 11 9 Protection 5 | . 10 10 . . Energy Cannon 10 | . . 14 11 6 Ballistic Gun 7 | . 32 3 9 2 Ballistic Cannon 6 | . . 13 2 . Special Weapon 1 | . . . . 6 Peak Build Rating 65 | 5 8 16 19 65 Average Rating 20 | 3 7 13 17 39 On Entrance 9 | . 5 8 15 19 Avg Prop Armor Cover (%) 11 | . . . 9 12 Naked Turns . | . . . . . Heaviest Build 24 | 9 11 24 19 20 Greatest Support 32 | 16 10 16 32 32 Greatest Overweight (x) 2 | . 1 2 1 . Average Overweight (x) . | . . 1 . . Largest Inventory Capacity 5 | 3 4 5 5 5 Average Capacity 4 | 3 3 4 5 5 Most Carried 5 | 1 3 5 5 5 Average Carried 4 | . 2 4 4 3 Final Capacity 5 | 3 4 5 5 5 Final Carried 5 | 1 3 5 5 5 Class Distribution -------------------- 41% | Mutant 39% | Commander-Mutant 19% | Hacker-Mutant Dominant Class ---------------- Mutant | -10/Materials Mutant | -10/Subcaves Commander-Mutant | -9/Recycling Commander-Mutant | -9/Scraptown Resources | -11 -10 -10 -9 -9 ----------- Run | Yrd Mat Sub Rec Scr Matter Collected 1862 | 266 491 935 110 60 Remotely . | . . . . . Salvage Created 1450 | 25 368 628 330 99 Parts 115 | 3 40 55 11 6 Haulers Intercepted 2 | . 2 . . . Recyclers Shooed 2 | . . . 2 . Parts Field Recycled . | . . . . . Retrieved Matter . | . . . . . Parts Self-Destructed 17 | . . 17 . . Prevented . | . . . . . Parts Restored . | . . . . . Kills | -11 -10 -10 -9 -9 ------- Run | Yrd Mat Sub Rec Scr Combat Hostiles Destroyed 51 | . 14 28 4 5 Guns 9 | . 4 5 . . Cannons 24 | . . 19 4 1 AOE 13 | . 10 3 . . Classes Destroyed 18 | 1 8 4 2 3 Worker 1 | . 1 . . . Builder 1 | . 1 . . . Tunneler 1 | 1 . . . . Hauler 2 | . 2 . . . Recycler 3 | . . . 3 . Mechanic 1 | . 1 . . . Operator 2 | . 1 1 . . Turret 2 | . . 2 . . Watcher 2 | . 2 . . . Swarmer 12 | . 6 5 1 . Grunt 9 | . 8 1 . . Duelist 1 | . . . 1 . Sentry 3 | . . 1 2 . Cobbler 1 | . . 1 . . Subdweller 21 | . . 21 . . Federalist 1 | . . . . 1 Guru 2 | . . . . 2 Scrapper 2 | . . . . 2 Best Kill Streak 11 | 1 11 6 4 2 Combat Bots Only 5 | . 5 4 3 2 Max Kills in Single Turn 4 | 1 4 3 2 1 Gunslinging . | . . . . . Exploded 3 | . 3 3 . . Melee . | . . . . . Uniques/NPCs Destroyed . | . . . . . Combat | -11 -10 -10 -9 -9 -------- Run | Yrd Mat Sub Rec Scr Hostile Shots Fired 229 | . 31 105 6 87 Missed 75 | . 7 32 1 35 Hits 154 | . 24 73 5 52 Projectile 154 | . 24 73 5 52 Critical Strikes 8 | . . 3 . 5 Part Disruptions 1 | . . . . 1 Damage Taken 2844 | . 256 1475 74 1039 Core 2179 | . 200 1088 62 829 Absorbed by Shields . | . . . . . Redirected to Core 1771 | . 151 814 44 762 Core Remaining (%) 100 | 100 . . . . Volleys Fired 217 | 1 48 132 24 12 Largest 2 | 2 2 2 2 1 Hottest 160 | 40 46 160 120 . Shots Fired 330 | 2 85 199 32 12 Gun 97 | 2 74 19 2 . Cannon 204 | . . 174 30 . Launcher 17 | . 11 6 . . Special 12 | . . . . 12 Kinetic 206 | 2 74 120 10 . Thermal 101 | . . 79 22 . Explosive 11 | . 11 . . . Electromagnetic . | . . . . . Impact 12 | . . . . 12 Robot Hit Streak 13 | 2 7 13 8 8 Robot Miss Streak 4 | . 4 2 4 1 Penetration Max 1 | . . . 1 . Secondary Targets 1 | . 1 . . . Max Gunslinging Chain 1 | . 1 . . . Shots Hit Robots 184 | 2 46 106 21 9 Core Hits 76 | 1 32 34 9 . Critical Kills 3 | . . 3 . . Critical Parts Destroyed 7 | . . 4 1 2 Critical Strikes 12 | . . 9 1 2 Meltdown 1 | . . 1 . . Destroy 8 | . . 7 1 . Blast 1 | . . 1 . . Smash 2 | . . . . 2 Melee Attacks . | . . . . . Impact . | . . . . . Slashing . | . . . . . Piercing . | . . . . . Sneak Attacks . | . . . . . Combat Hostiles . | . . . . . Follow-up Attacks . | . . . . . Damage Inflicted 5629 | 24 1303 3029 699 574 Guns 895 | 24 561 288 22 . Cannons 3039 | . . 2362 677 . Explosions 1121 | . 742 379 . . Melee . | . . . . . Ramming . | . . . . . Kinetic 2377 | 24 561 1596 196 . Thermal 1936 | . . 1433 503 . Explosive 742 | . 742 . . . Electromagnetic . | . . . . . Impact 574 | . . . . 574 Slashing . | . . . . . Piercing . | . . . . . Highest Corruption 3 | . . . . 3 Average Corruption 2 | . . . . 2 Corruption Purged . | . . . . . Corruption Blocked . | . . . . . Overload Shots . | . . . . . Overflow Damage 335 | . . 101 44 190 Projectiles 260 | . . 26 44 190 Explosions 75 | . . 75 . . Melee . | . . . . . Knockbacks 12 | . . 9 1 2 Impact 2 | . . . . 2 Kinetic 9 | . . 8 1 . Secondary 1 | . . 1 . . Self-Inflicted Damage 19 | . 19 . . . Shots 1 | . 1 . . . Rammed . | . . . . . Targets Rammed . | . . . . . Kicked . | . . . . . Crushed . | . . . . . Highest Temperature 276 | . 28 276 140 105 Average Temperature 56 | . 8 83 53 46 Received Heat Transfer 1031 | . 72 318 18 623 Siege Activations . | . . . . . Martial Activations . | . . . . . Shielding Activations . | . . . . . Robots Disrupted . | . . . . . Combat Hostiles . | . . . . . Robots Corrupted 4 | . . . . 4 Combat Hostiles 4 | . . . . 4 Parts Fried 4 | . . . . 4 Impact Corruptions 8 | . . . . 8 Robots Melted 1 | . . 1 . . Combat Hostiles 1 | . . 1 . . Parts Melted 5 | . . 4 1 . Heat Transferred 2590 | . . 1924 666 . Parts Sabotaged . | . . . . . Parts Stolen . | . . . . . Parts Stripped . | . . . . . Power Chain Reactions . | . . . . . Alert | -11 -10 -10 -9 -9 ------- Run | Yrd Mat Sub Rec Scr Maximum Alert Level 1 | . 1 . . . Low Security (%) 78 | 100 47 . 100 . Level 1 21 | . 52 . . . Level 2 . | . . . . . Level 3 . | . . . . . Level 4 . | . . . . . Level 5 . | . . . . . High Security . | . . . . . Max Security . | . . . . . Peak Influence 337 | 5 337 . 123 . Initial 3 | . 3 . . . Average 94 | 1 181 . 35 . Influence Increases 1161 | 5 498 205 453 . Destroy 0b10 Robot/C 600 | . 280 180 140 . Destroy 0b10 Robot/NC 70 | 5 40 . 25 . Destroy Leader 68 | . 58 10 . . Allied During Kill 24 | . . . 24 . Successful Hack 37 | . 16 . 21 . Select Force Hacks 240 | . 30 . 210 . Disable Machine 30 | . 15 . 15 . Destroy Structure 62 | . 44 . 18 . Lose Combat Pursuer 30 | . 15 15 . . Influence Decreases 1161 | . 336 372 453 . Entered New Map 83 | . 2 81 . . Time Decay 996 | . 334 291 371 . Lost Ally 9 | . . . 9 . Purge Threat 73 | . . . 73 . Squads Dispatched 3 | . 3 . . . Investigation 2 | . 2 . . . Extermination . | . . . . . Reinforcement 1 | . 1 . . . Assault . | . . . . . Garrison . | . . . . . Intercept . | . . . . . Searches Triggered . | . . . . . Construction Impeded . | . . . . . Haulers Reinforced . | . . . . . Active Scanning Responses . | . . . . . Cargo Convoy Interrupts . | . . . . . Stealth | -11 -10 -10 -9 -9 --------- Run | Yrd Mat Sub Rec Scr Distress Signals 2 | . 1 . 1 . Communications Jammed . | . . . . . Distress Signals . | . . . . . Times Spotted 105 | . 22 31 5 47 Peak Tracking Total 29 | . 4 6 1 29 Tactical Retreats 3 | . 1 1 . 1 Traps | -11 -10 -10 -9 -9 ------- Run | Yrd Mat Sub Rec Scr Traps Triggered 3 | . 1 2 . . Indirectly . | . . . . . Trap Hack Attempts . | . . . . . Triggered . | . . . . . Disarmed . | . . . . . Reprogrammed . | . . . . . Reused 2 | . . 2 . . Traps Extracted . | . . . . . Installed 3 | . . 2 . 1 Triggered . | . . . . . Most Traps Carried 1 | . . 1 . 1 Machines | -11 -10 -10 -9 -9 ---------- Run | Yrd Mat Sub Rec Scr Machines Disabled 10 | . 1 4 1 4 Max in Single Turn 4 | . 1 4 1 1 Machines Repaired . | . . . . . Machines Dismantled . | . . . . . Machines Sabotaged . | . . . . . Overloaded Fab Kills . | . . . . . Hacking | -11 -10 -10 -9 -9 --------- Run | Yrd Mat Sub Rec Scr Machines Accessed 28 | . 7 4 13 4 Terminals 11 | . 5 . 6 . Fabricators . | . . . . . Repair Stations 1 | . 1 . . . Recycling Units 8 | . 1 . 7 . Scanalyzers . | . . . . . Garrison Access . | . . . . . Total Hacks 99 | . 27 7 43 22 Successful 76 | . 17 7 30 22 Failed 22 | . 10 . 12 . Catastrophic 3 | . 1 . 2 . Database Lockouts 1 | . . . 1 . Manual 51 | . 23 . 28 . Terminals 47 | . 23 . 24 . Fabricators . | . . . . . Repair Stations 1 | . 1 . . . Recycling Units 22 | . 3 . 19 . Scanalyzers . | . . . . . Garrison Access . | . . . . . Terminal Hacks 42 | . 4 7 9 22 Record 25 | . . 4 . 21 Part Schematic 1 | . . . 1 . Robot Analysis 4 | . 2 . 2 . Open Door 1 | . . 1 . . Terminal Index 2 | . 1 . 1 . Alert Level 1 | . . . 1 . Unreport Threat 3 | . . . 3 . Recall Investigation 1 | . . . 1 . Registered Components 1 | . 1 . . . Proto ID Catalog 2 | . . 1 . 1 Release Object 1 | . . 1 . . Fabricator Hacks . | . . . . . Repair Station Hacks 1 | . 1 . . . Refit 1 | . 1 . . . Recycling Unit Hacks 7 | . . . 7 . Retrieve Components 7 | . . . 7 . Scanalyzer . | . . . . . Garrison Access Hacks . | . . . . . Unauthorized Hacks 26 | . 12 . 14 . Terminals 18 | . 11 . 7 . Assimilate 1 | . 1 . . . Botnet 7 | . 5 . 2 . Operators 1 | . 1 . . . Skim 9 | . 4 . 5 . Fabricators . | . . . . . Repair Stations . | . . . . . Recycling Units 8 | . 1 . 7 . Tunnel 8 | . 1 . 7 . Scanalyzers . | . . . . . Garrison Access . | . . . . . Data Cores Recovered . | . . . . . Used . | . . . . . Hacking Detections 14 | . 6 . 8 . Full Trace Events . | . . . . . Feedback Events . | . . . . . Feedback Blocked . | . . . . . Robot Schematics Acquired . | . . . . . Robots Built . | . . . . . Authchips . | . . . . . Time . | . . . . . Total Robot Build Rating . | . . . . . Part Schematics Acquired 1 | . . . 1 . Parts Built . | . . . . . Authchips . | . . . . . Time . | . . . . . Total Part Build Rating . | . . . . . Part Studies Acquired . | . . . . . Parts Repaired . | . . . . . Time . | . . . . . Parts Recycled . | . . . . . Recycled Matter . | . . . . . Retrieved Matter . | . . . . . Retrieved Components 19 | . . . 19 . Parts Scanalyzed . | . . . . . Part Schematics Acquired . | . . . . . Parts Damaged . | . . . . . Bothacking | -11 -10 -10 -9 -9 ------------ Run | Yrd Mat Sub Rec Scr Used RIF Installer . | . . . . . Robots Hacked . | . . . . . Non-combat . | . . . . . Combat . | . . . . . Robot Hacks Applied . | . . . . . Relay Couplers Released . | . . . . . Fabnet Peak Effective % . | . . . . . Robots Rewired 10 | . . . 10 . Allies Hacked . | . . . . . Hacks Repelled . | . . . . . Allies | -11 -10 -10 -9 -9 -------- Run | Yrd Mat Sub Rec Scr Total Allies 11 | . 1 . 10 . Largest Group 10 | . 1 1 10 9 Highest-Rated Group 130 | . 10 10 130 121 Highest-Rated Ally 34 | . 10 10 34 34 Total Orders 17 | . . . 8 9 STAY 4 | . . . 2 2 FOLLOW 8 | . . . 4 4 PICKUP 5 | . . . 2 3 Ally Attacks 27 | . . . 13 14 Total Damage 600 | . . . 127 473 Kills 6 | . . . 3 3 Allies Corrupted . | . . . . . Allies Melted 4 | . . . . 4 Intel | -11 -10 -10 -9 -9 ------- Run | Yrd Mat Sub Rec Scr Active Infowar (turns) 7880 | 8 936 3545 1301 2090 Structural 444 | . . . . 444 Seismic 7436 | 8 936 3545 1301 1646 Robot Analysis Total 4 | . 2 . 2 . Derelict Logs Recovered 1 | . . . . 1 Drone Launches . | . . . . . Drone Recoveries . | . . . . . Exploration | -11 -10 -10 -9 -9 ------------- Run | Yrd Mat Sub Rec Scr Turns Passed 7931 | 59 936 3545 1301 2090 Spaces Moved 7170 | 46 695 2823 803 2803 Core 2 | 2 . . . . Treads . | . . . . . Legs . | . . . . . Wheels 5293 | 44 695 2823 803 928 Hover . | . . . . . Flight 1875 | . . . . 1875 Fastest Speed 40 | 50 80 95 100 40 Average Speed 86 | 97 90 108 101 59 Slowest Speed 115 | 100 95 115 115 100 Overloaded Moves . | . . . . . Propulsion Burnouts . | . . . . . Robots Hopped 4 | . . . . 4 Potential Cave-ins . | . . . . . Cave-ins Triggered . | . . . . . Exploration Rate (%) 77 | 3 99 97 99 91 Regions Visited 4 Branch Regions 3 Pre-discovered Areas 15 | . 1 1 7 6 Known Exits Taken . | . . . . . Unknown Exits Taken 4 | 1 1 1 1 . Scrap Searched 15 | . . 11 . 4 Spaces Dug 58 | . 8 50 . . Terrain Destroyed 178 | . 45 128 5 . Melee . | . . . . . Projectile 37 | . . 32 5 . AOE 141 | . 45 96 . . Terrain Rammed . | . . . . . Walls Destroyed . | . . . . . Machines Disabled . | . . . . . Actions | -11 -10 -10 -9 -9 --------- Run | Yrd Mat Sub Rec Scr Total 8543 | 55 927 3103 1255 3203 Wait 916 | 1 153 50 354 358 Move 7159 | 45 694 2822 802 2796 Hop 3 | . . . . 3 Pick Up 33 | 1 4 15 3 10 Fast Attach 24 | 6 2 7 6 3 Attach 3 | . . 2 . 1 Detach 1 | . . . . 1 Swap 22 | . 13 7 . 2 Drop 47 | 1 4 23 6 13 Fire 217 | 1 48 132 24 12 Melee . | . . . . . Ram . | . . . . . Kick . | . . . . . Crush . | . . . . . Escape Stasis . | . . . . . Rewire 35 | . . . 35 . Trap 3 | . . 2 . 1 Miscellaneous 80 | . 9 43 25 3 Route ------- -11/Scrapyard -10/Materials (discovered 6 exits: [*Mat x3] / [*Min x2] / *Sub) -10/Subcaves (discovered 4 exits: [*Mat x2] / *Rec / *Scr) -9/Recycling (discovered 2 exits: [*Fac] / *Scr) -9/Scraptown (discovered 2 exits: Fac x2) History --------- Turn | Location | Event 1 | -11/Scrapyard | Upgraded with Utility slot (x1) 1 | -11/Scrapyard | Upgraded with Weapon slot (x1) 6 | -11/Scrapyard | Discovered new exit (range 16) 60 | -11/Scrapyard | Entered Materials 310 | -10/Materials | Build established: Mutant 396 | -10/Materials | Discovered new exit (range 5) 405 | -10/Materials | Reached level 2 526 | -10/Materials | Discovered new exit (range 16) 562 | -10/Materials | Discovered new exit (range 8) 662 | -10/Materials | Discovered new exit (range 15) 726 | -10/Materials | Discovered new exit (range 5) 988 | -10/Materials | Discovered new exit (range 7) 996 | -10/Materials | Entered Subcaves 996 | -10/Subcaves | Accompanied by 1 ally 997 | -10/Subcaves | Approached by a straggling Scientist 1099 | -10/Subcaves | Discovered new exit (range 13) 1216 | -10/Subcaves | Ambushed by Subdwellers from Twisted Machinery 1341 | -10/Subcaves | Visited 4L-MR0's lab 1389 | -10/Subcaves | Discovered new exit (range 13) 1390 | -10/Subcaves | Shifting Twisted Machinery released Sub. Monowheel 1392 | -10/Subcaves | Shifting Twisted Machinery released Shrapnel Trap 1397 | -10/Subcaves | Shifting Twisted Machinery released Shrapnel Trap 1460 | -10/Subcaves | Shifting Twisted Machinery released Battle Rifle 1468 | -10/Subcaves | Shifting Twisted Machinery released Ripper 1715 | -10/Subcaves | Reached level 3 1769 | -10/Subcaves | Disturbed a concealed Subdweller 1774 | -10/Subcaves | Disturbed a concealed Subdweller 1774 | -10/Subcaves | Disturbed a concealed Subdweller 1801 | -10/Subcaves | Core integrity fell below 50% 1870 | -10/Subcaves | Disturbed a concealed Subdweller 2004 | -10/Subcaves | A swath of the cavern ceiling suddenly collapsed 2124 | -10/Subcaves | Discovered new exit (range 16) 2350 | -10/Subcaves | Visited Clippyterm 2354 | -10/Subcaves | Learned location of Section 7 (-2) 2485 | -10/Subcaves | Found SUBCON Basin 2648 | -10/Subcaves | A swath of the cavern ceiling suddenly collapsed 3267 | -10/Subcaves | A Subdweller sparked back to life 3267 | -10/Subcaves | A Subdweller sparked back to life 3267 | -10/Subcaves | A Subdweller sparked back to life 3404 | -10/Subcaves | Found Flightbrick 3614 | -10/Subcaves | Build established: Hacker-Mutant 3913 | -10/Subcaves | Ambushed by Subdweller buried in earth 4541 | -10/Subcaves | Entered Recycling 4543 | -9/Recycling | Reached level 4 4545 | -9/Recycling | Upgraded with Propulsion slot (x2) 4834 | -9/Recycling | Reached level 5 4840 | -9/Recycling | Upgraded with Propulsion slot (x1) 5047 | -9/Recycling | Build established: Commander-Mutant 5263 | -9/Recycling | Discovered new exit (range 17) 5552 | -9/Recycling | Learned location of 1 exit from Storage 5641 | -9/Recycling | Scanned before Scraplab entrance 5670 | -9/Recycling | Learned 4 Materials zone layouts 5679 | -9/Recycling | Entered Scraplab 5715 | -9/Recycling | Discovered new exit (range 3) 5763 | -9/Recycling | Learned Storage stockpile data 5794 | -9/Recycling | Learned location of 1 exit from Storage 5842 | -9/Recycling | Entered Scraptown 5842 | -9/Scraptown | Accompanied by 9 allies 6097 | -9/Scraptown | Visited Red Mages 6117 | -9/Scraptown | Visited Cyclists 6134 | -9/Scraptown | Visited Supply Room 6151 | -9/Scraptown | Visited Awakened 6167 | -9/Scraptown | Visited Supply Room 6208 | -9/Scraptown | Visited Symbiants 6383 | -9/Scraptown | Visited UFD Registry 6424 | -9/Scraptown | Registered with UFD as "Phaseunit" 6424 | -9/Scraptown | Reached level 6 6463 | -9/Scraptown | Entered Cyclist Reading Room 6467 | -9/Scraptown | Learned location of Zion (-7) 6525 | -9/Scraptown | Visited A0-MCA Data Center 6541 | -9/Scraptown | Visited Curators Association 6573 | -9/Scraptown | Visited Junk Cannon Lab 6653 | -9/Scraptown | Heard Great Nut preacher, LISTEN AND RECITE! 6672 | -9/Scraptown | Scanned Subdweller tech in exchange for log data 6819 | -9/Scraptown | Attached Flightbrick, gained temporary slots: Utility x3 6820 | -9/Scraptown | Visited Science Guys 6833 | -9/Scraptown | Visited Derelict Rescue Squad 6835 | -9/Scraptown | Found DRS Beacon 6843 | -9/Scraptown | Visited Scrapoid Research Area 6848 | -9/Scraptown | Visited Modified Component R&D 6868 | -9/Scraptown | Visited Chapter 10 6876 | -9/Scraptown | Visited Cartography Club 6884 | -9/Scraptown | Found Surveybot 17 Chip 7066 | -9/Scraptown | Found Prototype Special Weapon 7066 | -9/Scraptown | Identified Junk Cannon 7453 | -9/Scraptown | Found Deep Structural Scanner 7458 | -9/Scraptown | Learned location of Storage (-9) 7458 | -9/Scraptown | Learned location of Recycling (-9) 7458 | -9/Scraptown | Learned location of Warlord (-5) 7458 | -9/Scraptown | Learned 12 Factory zone layouts 7458 | -9/Scraptown | Learned 8 Access zone layouts 7458 | -9/Scraptown | Learned 4 Storage zone layouts 7458 | -9/Scraptown | Learned 24 Upper Caves zone layouts 7458 | -9/Scraptown | Learned 24 Proximity Caves zone layouts 7458 | -9/Scraptown | Learned location of 2 exits from Research 7458 | -9/Scraptown | Learned location of 3 exits from Proximity Caves 7458 | -9/Scraptown | Identified exit to Factory 7478 | -9/Scraptown | Given an A- rating by A0-MCA 7481 | -9/Scraptown | Found A0-MCA's Component Scanner 7785 | -9/Scraptown | Met Optimus 7785 | -9/Scraptown | Accepted into 0bPrime 7815 | -9/Scraptown | Civil war broke out across Scraptown 7871 | -9/Scraptown | Found Master Drone Bay 7915 | -9/Scraptown | Core integrity fell below 20% 7932 | -9/Scraptown | Destroyed by O8-SJ7(j) with Overtuned Pulse Rifle Last Messages --------------- 07918_ 6K-PHP(j) cannibalizes Ovr. Titanium Leg to repair Ovr. Titanium Leg. 07918_ Critical hit (Burn: +50). 07921_ O8-SJ7(j): "Make peace, not pieces!" 07925_ Destroyed Imp. Hover Unit. 07925_ M1-UOS(p) system corrupted by crushing effect. 07927_ Destroyed Imp. Hover Unit. 07927_ Destroyed EM Pulse Gun. 07927_ M1-UOS(p) system corrupted by crushing effect. 07928_ M1-UOS(p) system terminally corrupted. 07928_ Mak. Hacking Suite fried. 07929_ Destroyed Mak. Microdissipator Network. 07929_ Destroyed Mak. Salvage Targeting Computer. 07929_ FD-JGI(j) system corrupted by crushing effect. 07929_ FD-JGI(j) misfires. 07930_ FD-JGI(j) system terminally corrupted. Map ----- +----------------------------------------------------+ | ######################### !% # #"""""" | | ##########################% !### #######"######## | | """""""####""""" """"""#!%%=* %=%[=! | | " "####""""%* """"[#%=%[ %%! | | * "####"""[! * =/!#=!=[* [ | | " !]! "####### [%!%*!%%!=[[! | | " = "####! #" ""= %["!!!%==[ | | " !! "####!!#" "" #%=[%!!################ | | " [] "####!!#" """ #=*!*=################# | | " !! "####!!#" #*%%%=################# | | " "####!!#"" " " #j/h b################# | | """" ""####! + """ ==! #####???######### | | #### #########""" """ #[ j ####????######### | | #### ######""""""""" # j####????######### | | """" ""################# ####????######### | | " "#################= p ####??#### ""# | | " "" "#################%* ####??#### "" # | | " "" "#################% ####??#### "" # | | " "####????"""#"X" ;! ####??#### # | | ""####?#"""""# !% # ####??####"!!" | | " """""####?#"" ""# *%#* ##########"!!"" # | | """""""####?#" """# !==#% ##########"" # | | """""""####?####### #%= ##########]]]" # | | #############""# !=* ################# | | #############" # ## #= | | #"""X""######X # %@% [! | | #" "####### "# % # [%= | | #" "#######""X##""" # !! | | #" "###########;##### | | #" "########### !! | | #" "########## rr *%= % | | #"" """########### r=! =%! | | ############!############## | | ? ######" #######" | | #"" """##"" " "### ######" !!#######" | | #" "##"" "### ######"" !!#######" | | #"" "##"" "### ? ######"" "#######" """ | | #"" "##"" "### ###### !!"""#######" """ | | #"" " "##" "### ###### !!"""#######" """ | | #"""" "##" "### #####################" | | #""""""##""""""### ##############???####" | | ################## ##############???####""""""" | | ################## ##############???########### | | """""""###"""##### ####?????????????########### | | " "###" "##### ####?????????????########### | | " """ "#?# ##### ####???????????????#"""""""" | | " """ "#?# ##### ####???????????????#""""" "" | | " """ "??# ####?????????#######"""" " | | " """ "??# ###?????????# | | " """ "??# ####?###??#### #####"" "" " | +----------------------------------------------------+ Best States ------------- Heat Dissipation 31 Energy Generation 19 Energy Capacity 250 Matter Stores 300 Matter Capacity 300 Sight Range 17 Robot Scan Range 14 Terrain Scan Density 10 Armor Coverage 100 Evasion (%) 62 Offensive Hacking 36 Defensive Hacking 5 Authchip Count 1 Item Schematics ----------------- Imp. Terrain Scanner | -9/Recycling | Hacked Robot Schematics ------------------ None Fabricated ------------ Nothing Repaired ---------- Nothing Studied --------- None Alien Tech Used ----------------- None Achievements -------------- None Challenges ------------ None RPGLIKE | -11 -10 -10 -9 -9 --------- Run | Yrd Mat Sub Rec Scr Levels Raised 5 | . 1 1 2 1 XP Earned 10753 | 3000 1875 1950 3028 900 XP Spent 10480 | 2900 1400 1675 2600 1905 Upgrades 29 | 7 2 3 6 11 Propulsion Slot 3 | . . . 3 . Utility Slot 1 | 1 . . . . Weapon Slot 1 | 1 . . . . Core Integrity 3 | . . 1 . 2 Heat Dissipation 1 | . . . 1 . Energy Generation 1 | . . . . 1 Mass Support 1 | . . . . 1 Inventory Capacity 5 | 3 1 1 . . Sight Range 1 | . . . 1 . Sensor Range 7 | . . . 1 6 Ranged Accuracy 1 | . 1 . . . Hack Attack % 3 | 1 . 1 . 1 Hack Defense % 1 | 1 . . . . Protomatter Created 764 | . 138 359 118 149 Integrity Restored 1639 | . 143 917 507 72 Core 1422 | . 119 879 352 72 Parts 217 | . 24 38 155 . Protomatter Decayed 2711 | . 12 66 . 2633 Game ------ Seed ArcsightReactionDeck Manual? 0 Play Time 00:59:56 Cumulative 708.2 hours Start 2026.04.17 @ 16:49:13 End 2026.04.17 @ 17:48:59 Sessions 1 Manual Loads 0 Difficulty Rogue Special Mode Winter2019/RPGLIKE Game No. 211 Rogue 211 Adventurer 0 Explorer 0 Win Type - Total 27 Types 10/2/7/1/1/0/2/1/1/2 Lore% 95 Gallery% 87 Achievement% 81 Wizard Run 0 Options --------- Layout 1 ASCII 0 Keyboard 0 Movement Mouse Keybinds 0 Fullscreen 2 Font 32/SmallcapsGlow Map View 50x35 Zoom Use 0% Tactical HUD 1 Map Filters NONE Filters NONE Steam 1 RUN: a3034110-78f4-474f-a0d5-532f146879f7